bitfinex-derivatives/quotes_BTCF0:USTF0_20241130
["timestamp","ask_amount","ask_price","bid_price","bid_amount"]
[1732982498102,0.64416789,96710.0,96709.0,0.01654]
[1732982498302,0.64416789,96710.0,96687.0,0.00433758]
[1732982498603,0.3608,96688.0,96687.0,0.00433758]
[1732982498905,0.3608,96688.0,96687.0,0.0163011]
[1732982499301,0.3608,96688.0,96687.0,0.00433758]
[1732982500907,0.301308,96688.0,96687.0,0.00433758]
[1732982501100,0.58342446,96696.0,96695.0,0.051685]
[1732982501303,0.3972,96696.0,96695.0,0.051685]
[1732982502505,0.4072,96696.0,96695.0,0.051685]
[1732982503496,0.01,96696.0,96695.0,0.051685]
[1732982504204,0.3608,96697.0,96695.0,0.051685]
[1732982505503,0.3638,96697.0,96695.0,0.051685]
[1732982505707,0.3708,96697.0,96695.0,0.051685]
[1732982506204,0.01,96697.0,96695.0,0.051685]
[1732982506809,0.32954501,96701.0,96700.0,0.051683]
[1732982507005,0.19513,96701.0,96700.0,0.051683]
[1732982507206,0.132372,96701.0,96700.0,0.051683]
[1732982507408,0.132372,96701.0,96700.0,0.113283]
[1732982508015,0.136372,96701.0,96700.0,0.113283]
[1732982509204,0.143372,96701.0,96700.0,0.114283]
[1732982512313,0.11406457,96701.0,96700.0,0.114283]
[1732982513426,0.11406457,96701.0,96700.0,0.12670947]
[1732982518215,0.11406457,96701.0,96700.0,0.06510947]
[1732982518811,0.11406457,96701.0,96700.0,0.18878947]
[1732982519020,0.11406457,96701.0,96700.0,0.06510947]
[1732982519524,0.11406457,96701.0,96700.0,0.18878947]
[1732982519719,0.11406457,96701.0,96700.0,0.19404947]
[1732982521716,0.11406457,96701.0,96700.0,0.07036947]
[1732982521917,0.11406457,96701.0,96700.0,0.19404947]
[1732982522929,0.05124157,96701.0,96700.0,0.19404947]
[1732982523116,0.0301,96722.0,96700.0,0.19404947]
[1732982523428,8.13e-05,96710.0,96709.0,0.051678]
[1732982524528,0.0040813,96710.0,96709.0,0.051678]
[1732982524922,0.0120813,96710.0,96709.0,0.052678]
[1732982525525,0.0120813,96710.0,96709.0,0.176358]
[1732982526030,0.0110813,96710.0,96709.0,0.176358]
[1732982527639,0.0070813,96710.0,96709.0,0.176358]
[1732982527834,0.0100813,96710.0,96709.0,0.176358]
[1732982528526,0.0319,96721.0,96719.0,0.051672]
[1732982528730,0.34636706,96723.0,96720.0,0.12368]
[1732982528927,0.34636706,96723.0,96721.0,0.12368]
[1732982529126,0.34636706,96723.0,96722.0,0.12368]
[1732982529525,0.34649088,96723.0,96722.0,0.12368]
[1732982530830,0.34749088,96723.0,96722.0,0.12368]
[1732982531331,0.34849088,96723.0,96722.0,0.12468]
[1732982531833,0.34749088,96723.0,96722.0,0.13295]
[1732982533031,0.34749088,96723.0,96722.0,0.14514329]
[1732982536238,0.34749088,96723.0,96722.0,0.02146329]
[1732982537064,0.37819088,96723.0,96722.0,0.02146329]
[1732982538834,0.37819088,96723.0,96722.0,0.00927]
[1732982539038,0.051674,96717.0,96716.0,0.051674]
[1732982539343,0.412474,96717.0,96716.0,0.051674]
[1732982540338,0.413474,96717.0,96716.0,0.051674]
[1732982540539,0.413474,96717.0,96701.0,0.00723]
[1732982540741,0.35253,96702.0,96701.0,0.00723]
[1732982541243,0.35253,96702.0,96700.0,0.12894]
[1732982541438,0.0313,96701.0,96700.0,0.180623]
[1732982542331,0.0313,96701.0,96700.0,0.056943]
[1732982542639,0.0313,96701.0,96700.0,0.057943]
[1732982542840,0.3921,96701.0,96700.0,0.057943]
[1732982543036,0.3921,96701.0,96700.0,0.058943]
[1732982543438,0.54810575,96701.0,96700.0,0.059943]
[1732982544845,0.54910575,96701.0,96700.0,0.058943]
[1732982545238,0.55110575,96701.0,96700.0,0.056943]
[1732982554152,0.91190575,96701.0,96700.0,0.056943]
[1732982558256,0.91190575,96701.0,96700.0,0.063733]
[1732982558957,0.91190575,96701.0,96700.0,0.01205]
[1732982561259,0.88060575,96701.0,96700.0,0.01205]
[1732982561459,0.88060575,96701.0,96700.0,0.04295]
[1732982562058,0.7246,96701.0,96700.0,0.04295]
[1732982562450,0.003,96701.0,96700.0,0.04295]
[1732982562751,0.3608,96710.0,96709.0,0.051678]
[1732982563354,0.3108,96710.0,96709.0,0.051678]
[1732982563758,0.3128,96710.0,96709.0,0.085678]
[1732982564856,0.3128,96710.0,96709.0,0.090938]
[1732982565757,0.3108,96710.0,96709.0,0.089938]
[1732982570164,0.3108,96710.0,96709.0,0.10250044]
[1732982571363,0.3108,96710.0,96709.0,0.13490044]
[1732982577667,0.3608,96712.0,96710.0,0.051677]
[1732982578760,0.3608,96712.0,96710.0,0.058907]
[1732982579061,0.3608,96712.0,96710.0,0.059907]
[1732982582570,0.3608,96712.0,96711.0,0.051677]
[1732982584361,0.3608,96712.0,96711.0,0.175517]
[1732982584565,0.33776524,96712.0,96711.0,0.180777]
[1732982584769,0.3608,96724.0,96722.0,0.051671]
[1732982585974,0.3608,96724.0,96722.0,0.058451]
[1732982586169,0.3608,96724.0,96722.0,0.059451]
[1732982590070,0.3608,96724.0,96722.0,0.07183313]
[1732982590470,0.3608,96726.0,96722.0,0.07183313]
[1732982595077,0.0322,96730.0,96722.0,0.07183313]
[1732982595589,1e-08,96723.0,96722.0,0.07183313]
[1732982595779,1e-08,96723.0,96722.0,0.10213313]
[1732982595984,1e-08,96723.0,96722.0,0.10313313]
[1732982598286,1e-08,96723.0,96722.0,0.12381425]
[1732982598492,1e-08,96723.0,96722.0,0.30927317]
[1732982599292,1e-08,96723.0,96722.0,0.12381425]
[1732982599593,1e-08,96723.0,96722.0,0.30927317]
[1732982600489,0.3608,96737.0,96736.0,0.051663]
[1732982600689,0.031,96744.0,96743.0,0.05166]
[1732982600892,0.00359,96750.0,96749.0,0.051656]
[1732982601586,0.00367847,96750.0,96749.0,0.051656]
[1732982601988,0.00367847,96750.0,96749.0,0.052656]
[1732982602689,0.00367847,96750.0,96749.0,0.053656]
[1732982603490,0.00367847,96750.0,96749.0,0.052656]
[1732982604186,8.847e-05,96750.0,96749.0,0.052656]
[1732982605494,0.3608,96755.0,96754.0,0.051654]
[1732982605699,0.3608,96755.0,96754.0,0.175454]
[1732982607386,0.3608,96755.0,96754.0,0.176454]
[1732982607792,0.3608,96755.0,96754.0,0.183234]
[1732982608898,0.3608,96755.0,96754.0,0.182234]
[1732982609099,0.3608,96755.0,96754.0,0.183234]
[1732982610988,0.3608,96755.0,96754.0,0.182234]
[1732982611293,0.3608,96755.0,96754.0,0.188484]
[1732982618392,0.3608,96755.0,96754.0,0.064684]
[1732982618696,0.3608,96755.0,96754.0,0.188284]
[1732982623016,0.3608,96757.0,96755.0,0.051653]
[1732982623211,0.3608,96757.0,96756.0,0.051653]
[1732982624408,0.3608,96757.0,96756.0,0.052653]
[1732982627710,0.3608,96757.0,96756.0,0.001]
[1732982627907,0.3608,96757.0,96756.0,0.052653]
[1732982632821,0.3608,96757.0,96756.0,0.001]
[1732982633012,0.3608,96757.0,96756.0,0.052653]
[1732982636221,0.3608,96757.0,96756.0,0.057903]
[1732982636917,0.0325,96760.0,96759.0,0.051651]
[1732982638711,0.3608,96761.0,96760.0,0.05165]
[1732982639520,0.3608,96761.0,96760.0,0.05843]
[1732982641021,0.3608,96761.0,96760.0,0.05943]
[1732982647828,0.3608,96769.0,96768.0,0.051646]
[1732982648830,0.3608,96769.0,96768.0,0.052646]
[1732982654718,0.3608,96769.0,96768.0,0.057896]
[1732982658957,0.51490336,96769.0,96768.0,0.00625]
[1732982659125,0.64287633,96769.0,96768.0,0.00625]
[1732982659327,0.51490336,96769.0,96760.0,0.00678]
[1732982659530,0.3608,96761.0,96760.0,0.05843]
[1732982660533,0.3608,96761.0,96760.0,0.05943]
[1732982661934,0.1236,96763.0,96760.0,0.00778]
[1732982662135,0.7216,96761.0,96760.0,0.05265]
[1732982662841,0.77325,96761.0,96760.0,0.001]
[1732982663031,0.7216,96761.0,96760.0,0.05265]
[1732982663727,0.7216,96761.0,96760.0,0.05943]
[1732982664228,0.7236,96761.0,96760.0,0.05943]
[1732982668036,0.77525,96761.0,96760.0,0.05943]
[1732982670432,0.05365,96761.0,96760.0,0.05943]
[1732982670633,0.77525,96761.0,96760.0,0.05943]
[1732982674639,0.7236,96761.0,96760.0,0.05943]
[1732982685465,0.002,96761.0,96760.0,0.05943]
[1732982685664,0.7236,96761.0,96760.0,0.05943]
[1732982686369,0.80012419,96761.0,96760.0,0.05943]
[1732982688763,0.80043351,96761.0,96760.0,0.05943]
[1732982689162,0.95633269,96761.0,96760.0,0.00778]
[1732982689465,1.33024659,96761.0,96760.0,0.00778]
[1732982689672,1.05147208,96761.0,96760.0,0.00778]
[1732982690072,1.17507208,96761.0,96760.0,0.00778]
[1732982690668,1.07993269,96761.0,96760.0,0.00778]
[1732982691174,1.17507887,96761.0,96760.0,0.00778]
[1732982692261,1.45407597,96761.0,96760.0,0.00778]
[1732982692872,1.50572597,96761.0,96760.0,0.00778]
[1732982693266,1.13158269,96761.0,96760.0,0.00778]
[1732982693669,1.13179091,96761.0,96760.0,0.00778]
[1732982693867,1.13179091,96761.0,96760.0,0.05943]
[1732982694067,1.0547925,96761.0,96760.0,0.05943]
[1732982694269,1.0031425,96761.0,96760.0,0.05943]
[1732982695971,0.8795425,96761.0,96760.0,0.05943]
[1732982696180,1.0031425,96761.0,96760.0,0.05943]
[1732982700473,1.0547925,96761.0,96760.0,0.05943]
[1732982701769,1.0031425,96761.0,96760.0,0.05943]
[1732982702675,0.7236,96761.0,96760.0,0.05943]
[1732982705872,0.3628,96761.0,96760.0,0.05943]
[1732982707672,0.3128,96761.0,96760.0,0.05943]
[1732982708572,0.3608,96768.0,96760.0,0.05943]
[1732982708773,0.3608,96768.0,96760.0,0.05265]
[1732982710482,0.3608,96768.0,96767.0,0.051647]
[1732982712173,0.3608,96768.0,96767.0,0.052647]
[1732982712873,0.3608,96768.0,96767.0,0.001]
[1732982714878,0.3608,96768.0,96767.0,0.01296771]
[1732982715180,0.3608,96768.0,96767.0,0.001]
[1732982717881,0.3608,96768.0,96767.0,0.01326219]
[1732982718077,0.3608,96768.0,96767.0,0.001]
[1732982718277,0.3608,96768.0,96767.0,0.0326]
[1732982719280,0.3608,96779.0,96778.0,0.051641]
[1732982721188,0.3608,96779.0,96778.0,0.052641]
[1732982722080,0.3608,96779.0,96778.0,0.053641]
[1732982722480,0.3608,96779.0,96778.0,0.052641]
[1732982722789,0.3608,96779.0,96778.0,0.053641]
[1732982723181,0.3608,96779.0,96778.0,0.052641]
[1732982723681,0.3608,96779.0,96778.0,0.051641]
[1732982726584,0.3608,96779.0,96778.0,0.06361817]
[1732982731391,0.3608,96779.0,96778.0,0.07040817]
[1732982732892,0.3608,96787.0,96786.0,0.051637]
[1732982735192,0.3608,96795.0,96794.0,0.051632]
[1732982736399,0.3608,96795.0,96794.0,0.052632]
[1732982737483,0.0326,96798.0,96797.0,0.051631]
[1732982738299,0.00409,96799.0,96797.0,0.051631]
[1732982739082,0.00409,96799.0,96797.0,0.052631]
[1732982739486,0.00409,96799.0,96797.0,0.051631]
[1732982739689,0.00409,96799.0,96797.0,0.052631]
[1732982739889,0.00409,96799.0,96797.0,0.053631]
[1732982740487,0.00409,96799.0,96797.0,0.06463571]
[1732982740689,0.00409,96799.0,96797.0,0.06563571]
[1732982743195,0.1,96800.0,96799.0,0.05163]
[1732982744893,0.1,96800.0,96799.0,0.05263]
[1732982745397,0.1,96800.0,96799.0,0.05363]
[1732982749701,0.4608,96800.0,96799.0,0.05263]
[1732982749996,0.4608,96800.0,96799.0,0.17615]
[1732982751900,0.4608,96800.0,96799.0,0.18294]
[1732982755604,0.1,96800.0,96799.0,0.18294]
[1732982757499,0.4608,96800.0,96799.0,0.18294]
[1732982759302,0.4608,96800.0,96799.0,0.05942]
[1732982764116,0.4608,96800.0,96799.0,0.18314]
[1732982769320,0.4608,96800.0,96799.0,0.05942]
[1732982769823,0.37812,96800.0,96799.0,0.05942]
[1732982771121,0.37812,96800.0,96799.0,0.05842]
[1732982771514,0.0331,96810.0,96799.0,0.00679]
[1732982771721,0.0331,96810.0,96808.0,0.051625]
[1732982772824,0.0305,96818.0,96816.0,0.051621]
[1732982773026,0.36136001,96822.0,96821.0,0.051618]
[1732982773219,0.3608,96822.0,96821.0,0.175338]
[1732982773519,0.3608,96833.0,96831.0,0.051612]
[1732982773920,0.3608,96833.0,96831.0,0.175332]
[1732982774121,0.3608,96833.0,96832.0,0.12372]
[1732982774723,0.15,96840.0,96832.0,0.12372]
[1732982774933,0.15,96840.0,96839.0,0.051608]
[1732982778432,0.15,96840.0,96839.0,0.052608]
[1732982779432,0.15,96840.0,96839.0,0.051608]
[1732982779636,0.15,96840.0,96839.0,0.052608]
[1732982780732,0.15,96840.0,96839.0,0.059398]
[1732982780933,0.1475,96840.0,96839.0,0.059398]
[1732982785129,0.1475,96840.0,96839.0,1.559398]
[1732982786135,0.1475,96840.0,96839.0,1.558398]
[1732982786336,0.1475,96840.0,96839.0,1.559398]
[1732982786733,0.1475,96840.0,96839.0,1.558398]
[1732982786934,0.1475,96840.0,96839.0,0.059398]
[1732982787534,0.1475,96840.0,96839.0,1.559398]
[1732982787732,0.1475,96840.0,96839.0,0.059398]
[1732982793943,0.5083,96840.0,96839.0,0.059398]
[1732982800346,0.5083,96840.0,96839.0,0.0714222]
[1732982818146,0.559908,96840.0,96839.0,0.0714222]
[1732982818551,0.5083,96840.0,96839.0,0.0714222]
[1732982828364,0.1475,96840.0,96839.0,0.0714222]
[1732982828561,0.5083,96840.0,96839.0,0.0714222]
[1732982829450,0.559908,96840.0,96839.0,0.0714222]
[1732982836966,0.559908,96840.0,96839.0,0.0198142]
[1732982838463,0.559908,96840.0,96839.0,0.00779]
[1732982839269,0.559908,96840.0,96839.0,0.059398]
[1732982839655,0.559908,96840.0,96839.0,0.00779]
[1732982840754,0.559908,96840.0,96839.0,0.059398]
[1732982842156,0.5083,96840.0,96839.0,0.059398]
[1732982842567,0.63178,96840.0,96839.0,0.059398]
[1732982844468,0.683388,96840.0,96839.0,0.059398]
[1732982846063,0.559908,96840.0,96839.0,0.059398]
[1732982846272,0.683388,96840.0,96839.0,0.059398]
[1732982846481,0.683388,96840.0,96839.0,0.058398]
[1732982846673,0.683388,96840.0,96839.0,0.059398]
[1732982849373,0.683388,96840.0,96839.0,0.00779]
[1732982849578,0.83779416,96840.0,96839.0,0.00779]
[1732982849965,0.86879416,96840.0,96839.0,0.00779]
[1732982851967,1.16879416,96840.0,96839.0,0.00779]
[1732982852183,1.26386938,96840.0,96810.0,0.08551626]
[1732982852477,0.77322,96817.0,96810.0,0.08551626]
[1732982852674,0.89666,96817.0,96815.0,0.051621]
[1732982853275,0.84504,96817.0,96815.0,0.051621]
[1732982853876,0.7216,96817.0,96816.0,0.0124123]
[1732982854078,0.43396,96835.0,96818.0,0.051619]
[1732982854079,0.12348,96825.0,96818.0,0.051619]
[1732982854275,0.3608,96832.0,96831.0,0.051613]
[1732982854476,0.48428,96832.0,96831.0,0.051613]
[1732982855278,0.3608,96832.0,96831.0,0.051613]
[1732982855483,0.63931739,96832.0,96831.0,0.051613]
[1732982858181,0.51583739,96832.0,96831.0,0.051613]
[1732982858381,0.63931739,96832.0,96831.0,0.051613]
[1732982858687,0.64031739,96832.0,96831.0,0.052613]
[1732982859278,0.51683739,96832.0,96831.0,0.052613]
[1732982867190,0.51583739,96832.0,96831.0,0.051613]
[1732982867394,0.51583739,96832.0,96831.0,0.052613]
[1732982867788,0.51583739,96832.0,96831.0,0.051613]
[1732982867983,0.51583739,96832.0,96831.0,0.052613]
[1732982868693,0.15503739,96832.0,96831.0,0.052613]
[1732982868890,0.51583739,96832.0,96831.0,0.052613]
[1732982869098,0.3608,96832.0,96831.0,0.052613]
[1732982869398,0.51510632,96832.0,96831.0,0.052613]
[1732982882598,0.3608,96832.0,96831.0,0.052613]
[1732982887200,0.051609,96838.0,96831.0,0.001]
[1732982887502,0.051609,96838.0,96837.0,0.051609]
[1732982887910,0.2064571,96838.0,96837.0,0.051609]
[1732982888205,0.1548481,96838.0,96837.0,0.051609]
[1732982888608,0.1548481,96839.0,96831.0,0.001]
[1732982888802,0.3608,96832.0,96831.0,0.052613]
[1732982890511,0.3608,96832.0,96831.0,0.051613]
[1732982891103,0.3608,96832.0,96831.0,0.052613]
[1732982896617,0.3608,96832.0,96831.0,0.051613]
[1732982896818,0.3608,96832.0,96831.0,0.052613]
[1732982910717,0.3608,96832.0,96831.0,0.001]
[1732982911414,0.3926,96832.0,96831.0,0.001]
[1732982913321,0.4226,96832.0,96831.0,0.001]
[1732982918615,0.474212,96832.0,96831.0,0.001]
[1732982918813,0.62822658,96832.0,96831.0,0.001]
[1732982920616,0.05162,96817.0,96811.0,0.051623]
[1732982920821,0.89746,96817.0,96811.0,0.051623]
[1732982921016,0.89746,96817.0,96809.0,0.064]
[1732982921217,0.89746,96817.0,96814.0,0.01199058]
[1732982921625,0.89746,96817.0,96809.0,0.064]
[1732982922128,0.89746,96817.0,96812.0,0.01207017]
[1732982923631,0.89946,96817.0,96816.0,0.00207916]
[1732982924321,0.89946,96817.0,96816.0,7.916e-05]
[1732982930328,0.77522,96817.0,96816.0,7.916e-05]
[1732982930528,0.8995,96817.0,96816.0,0.03107916]
[1732982930733,0.84788,96817.0,96816.0,0.03107916]
[1732982938836,0.84708,96817.0,96816.0,0.03107916]
[1732982946855,0.3628,96817.0,96816.0,0.03107916]
[1732982947152,0.002,96817.0,96816.0,0.03107916]
[1732982947748,0.3608,96826.0,96816.0,0.08270016]
[1732982947939,0.3608,96826.0,96825.0,0.051616]
[1732982950151,0.3668,96826.0,96825.0,0.052616]
[1732982950750,0.3688,96826.0,96825.0,0.052616]
[1732982950961,0.3678,96826.0,96825.0,0.051616]
[1732982953771,0.3678,96826.0,96825.0,0.06361857]
[1732982953973,0.3628,96826.0,96825.0,0.06361857]
[1732982954166,0.3678,96826.0,96825.0,0.06361857]
[1732982954362,0.3658,96826.0,96825.0,0.06361857]
[1732982954669,0.3678,96826.0,96825.0,0.06361857]
[1732982956362,0.3658,96826.0,96825.0,0.06361857]
[1732982956568,0.3678,96826.0,96825.0,0.06361857]
[1732982959981,0.007,96826.0,96825.0,0.06361857]
[1732982960174,0.3678,96826.0,96825.0,0.06361857]
[1732982979179,0.419415,96826.0,96825.0,0.06361857]
[1732982983191,0.3678,96826.0,96816.0,7.916e-05]
[1732982983394,0.41242,96817.0,96816.0,7.916e-05]
[1732982983594,0.5359,96817.0,96816.0,7.916e-05]
[1732982983783,0.5359,96817.0,96816.0,0.05170016]
[1732982987598,0.5359,96817.0,96816.0,0.05270016]
[1732982988098,0.48428,96817.0,96816.0,0.05270016]
[1732982994993,0.3608,96817.0,96816.0,0.05270016]
[1732983003710,0.41242,96817.0,96816.0,0.00107916]
[1732983003910,0.56832886,96817.0,96816.0,0.00107916]
[1732983004712,0.56832886,96817.0,96816.0,0.05270016]
[1732983005407,0.56832886,96817.0,96816.0,0.00107916]
[1732983006805,0.20752886,96817.0,96816.0,0.00107916]
[1732983007006,0.92912886,96817.0,96816.0,0.00107916]
[1732983008605,0.20752886,96817.0,96816.0,0.00107916]
[1732983008805,0.92912886,96817.0,96816.0,0.00107916]
[1732983014511,0.92912886,96817.0,96816.0,0.05270016]
[1732983018516,0.87750886,96817.0,96816.0,0.05270016]
[1732983018812,1.00098886,96817.0,96816.0,0.05270016]
[1732983020226,0.87750886,96817.0,96816.0,0.05270016]
[1732983023216,0.35926,96817.0,96816.0,0.05270016]
[1732983023727,0.3608,96831.0,96816.0,0.18613222]
[1732983023927,0.3608,96831.0,96830.0,0.051613]
[1732983024318,0.51670921,96831.0,96830.0,0.051613]
[1732983025323,0.52370921,96831.0,96830.0,0.051613]
[1732983026325,0.52670921,96831.0,96830.0,0.051613]
[1732983026519,0.3638,96831.0,96830.0,0.051613]
[1732983026716,0.3708,96831.0,96830.0,0.052613]
[1732983026922,0.3678,96831.0,96830.0,0.052613]
[1732983027120,0.3708,96831.0,96830.0,0.052613]
[1732983031930,0.3708,96831.0,96830.0,0.06458358]
[1732983049641,0.3708,96831.0,96830.0,0.052613]
[1732983050547,0.4348,96831.0,96830.0,0.052613]
[1732983054841,0.55824,96831.0,96830.0,0.052613]
[1732983061845,0.52624,96831.0,96830.0,0.052613]
[1732983062155,0.49424,96831.0,96830.0,0.052613]
[1732983062454,0.3708,96831.0,96830.0,0.052613]
[1732983069053,0.01,96831.0,96830.0,0.052613]
[1732983069255,0.3708,96831.0,96830.0,0.052613]
[1732983070058,0.3708,96831.0,96830.0,0.001]
[1732983076150,0.52619588,96831.0,96830.0,0.001]
[1732983081562,0.88699588,96831.0,96830.0,0.001]
[1732983089864,0.93860888,96831.0,96830.0,0.001]
[1732983092468,1.03369277,96831.0,96830.0,0.001]
[1732983092670,0.93860888,96831.0,96830.0,0.001]
[1732983093169,1.03369346,96831.0,96830.0,0.001]
[1732983094074,0.93860888,96831.0,96830.0,0.001]
[1732983094576,0.05162,96817.0,96816.0,7.916e-05]
[1732983094768,0.63131766,96817.0,96816.0,7.916e-05]
[1732983095071,0.78643814,96817.0,96816.0,7.916e-05]
[1732983095275,0.78644061,96817.0,96816.0,1.6e-07]
[1732983095576,0.78644061,96817.0,96816.0,0.00100016]
[1732983095577,0.78644398,96817.0,96816.0,0.00100016]
[1732983095768,0.78744398,96817.0,96816.0,0.00100016]
[1732983096374,0.7875234,96817.0,96816.0,0.00100016]
[1732983096773,0.90279479,96817.0,96816.0,0.00100016]
[1732983099175,1.30608761,96817.0,96816.0,1.6e-07]
[1732983099471,1.21097946,96817.0,96816.0,1.6e-07]
[1732983099679,0.91097946,96817.0,96816.0,1.6e-07]
[1732983099869,1.0060877,96817.0,96816.0,1.6e-07]
[1732983100665,1.01834397,96817.0,96816.0,1.6e-07]
[1732983101974,1.01834417,96817.0,96816.0,1.6e-07]
[1732983102178,0.92323573,96817.0,96816.0,1.6e-07]
[1732983102674,0.58310867,96817.0,96816.0,1.6e-07]
[1732983102983,1.30470867,96817.0,96816.0,1.6e-07]
[1732983104466,1.18090867,96817.0,96816.0,1.6e-07]
[1732983104776,0.051631,96797.0,96796.0,0.0321]
[1732983104979,0.897071,96797.0,96796.0,0.0321]
[1732983105969,0.897071,96797.0,96796.0,0.0381]
[1732983107875,0.898071,96797.0,96796.0,0.0461]
[1732983108376,0.897071,96797.0,96796.0,0.0351]
[1732983108581,0.897071,96797.0,96796.0,0.0391]
[1732983111575,1.05142296,96797.0,96796.0,0.0391]
[1732983113475,1.05142296,96797.0,96796.0,0.007]
[1732983115478,1.05142296,96797.0,96796.0,0.002]
[1732983115680,1.05142296,96797.0,96796.0,0.004]
[1732983117280,1.06367635,96797.0,96796.0,0.004]
[1732983125787,1.27768907,96797.0,96796.0,0.004]
[1732983128890,1.27768804,96797.0,96796.0,0.004]
[1732983129894,1.18256938,96797.0,96796.0,0.004]
[1732983131290,1.05872938,96797.0,96796.0,0.004]
[1732983131490,1.06355635,96797.0,96796.0,0.004]
[1732983132785,0.93983635,96797.0,96796.0,0.004]
[1732983132986,1.06355635,96797.0,96796.0,0.004]
[1732983135493,0.34195635,96797.0,96796.0,0.004]
[1732983135699,1.06355635,96797.0,96796.0,0.004]
[1732983141591,1.18217087,96797.0,96796.0,0.004]
[1732983141993,1.28555997,96797.0,96796.0,0.004]
[1732983143390,1.23392897,96797.0,96772.0,0.0318]
[1732983143595,0.773244,96773.0,96772.0,0.0318]
[1732983143894,1.05162949,96773.0,96772.0,0.0318]
[1732983144797,1.05262949,96773.0,96772.0,0.0408]
[1732983146594,1.05262949,96773.0,96772.0,0.0388]
[1732983146795,1.05362949,96773.0,96772.0,0.0468]
[1732983147199,1.05362949,96773.0,96772.0,0.015]
[1732983147909,1.15704421,96773.0,96772.0,0.015]
[1732983148705,1.26530299,96773.0,96772.0,0.015]
[1732983149293,0.051646,96768.0,96751.0,0.0627]
[1732983149703,0.31656652,96768.0,96751.0,0.0627]
[1732983150495,0.44008652,96768.0,96751.0,0.0627]
[1732983150896,0.44008652,96768.0,96767.0,0.00110226]
[1732983151700,0.44308652,96768.0,96767.0,0.00010226]
[1732983152903,0.45108652,96768.0,96767.0,0.00010226]
[1732983153401,0.45208652,96768.0,96767.0,0.00010226]
[1732983154013,0.45212652,96768.0,96767.0,0.00010226]
[1732983157101,0.45212652,96768.0,96746.0,0.051658]
[1732983157406,0.7216,96747.0,96727.0,0.0623]
[1732983157603,0.3608,96728.0,96727.0,0.0623]
[1732983157812,0.48436,96728.0,96727.0,0.0623]
[1732983158205,0.48445659,96728.0,96727.0,0.0623]
[1732983159011,0.48545659,96728.0,96727.0,0.0623]
[1732983160304,0.48645659,96728.0,96727.0,0.0673]
[1732983164209,0.12565659,96728.0,96727.0,0.0673]
[1732983164414,0.84725659,96728.0,96727.0,0.0673]
[1732983166219,0.72369659,96728.0,96727.0,0.0673]
[1732983166415,0.84725659,96728.0,96727.0,0.0673]
[1732983168115,0.48645659,96728.0,96727.0,0.0673]
[1732983169516,0.36289659,96728.0,96727.0,0.0673]
[1732983171608,0.31299659,96728.0,96727.0,0.0673]
[1732983171920,0.48496001,96731.0,96730.0,0.051667]
[1732983172106,0.48436,96731.0,96730.0,0.051667]
[1732983172622,0.48444525,96731.0,96730.0,0.051667]
[1732983173215,0.48544525,96731.0,96730.0,0.056667]
[1732983173521,0.48644525,96731.0,96730.0,0.056667]
[1732983178712,0.00208525,96731.0,96730.0,0.056667]
[1732983211338,0.00208525,96731.0,96730.0,0.24172006]
[1732983213142,0.00208525,96731.0,96730.0,0.056667]
[1732983213942,0.00208525,96731.0,96730.0,0.24266542]
[1732983214346,0.00208525,96731.0,96730.0,0.056667]
[1732983234154,0.00208525,96731.0,96730.0,0.24269358]
[1732983234457,0.00208525,96731.0,96730.0,0.056667]
[1732983236661,0.00208525,96731.0,96730.0,0.30340442]
[1732983237071,0.00208525,96731.0,96730.0,0.056667]
[1732983241063,2.5e-07,96731.0,96730.0,0.64246299]
[1732983241255,0.3608,96761.0,96734.0,0.051664]
[1732983241459,0.48448,96761.0,96751.0,0.05381626]
[1732983241764,0.154412,96759.0,96758.0,0.051652]
[1732983241965,0.12368,96759.0,96758.0,0.051652]
[1732983242267,0.27953144,96759.0,96758.0,0.051652]
[1732983243265,0.12368,96760.0,96758.0,0.051652]
[1732983243470,0.003,96759.0,96758.0,0.051652]
[1732983243666,0.009,96759.0,96758.0,0.051652]
[1732983244965,0.006,96759.0,96758.0,0.051652]
[1732983245969,0.009,96759.0,96758.0,0.051652]
[1732983248359,0.13268,96759.0,96758.0,0.051652]
[1732983248970,0.49348,96759.0,96758.0,0.051652]
[1732983249162,0.64953428,96759.0,96730.0,0.18592593]
[1732983249362,0.3608,96751.0,96740.0,0.05381626]
[1732983249669,0.18478,96750.0,96749.0,0.051656]
[1732983250577,0.236436,96750.0,96729.0,0.12368]
[1732983250764,0.29025226,96750.0,96740.0,0.05381626]
[1732983251165,0.3608,96743.0,96741.0,0.051661]
[1732983252976,0.3608,96743.0,96741.0,0.053661]
[1732983255968,0.3608,96743.0,96741.0,0.06594302]
[1732983256370,0.3608,96742.0,96741.0,0.06594302]
[1732983258080,0.3608,96742.0,96741.0,0.06394302]
[1732983258380,0.3608,96742.0,96741.0,0.06594302]
[1732983261575,0.41246,96742.0,96741.0,0.002]
[1732983261771,0.3608,96742.0,96741.0,0.002]
[1732983265481,0.12368,96745.0,96741.0,0.002]
[1732983265782,0.12368,96745.0,96744.0,0.051659]
[1732983268682,0.12368,96745.0,96744.0,0.052659]
[1732983275879,0.051657,96749.0,96747.0,0.051657]
[1732983276079,0.12408,96748.0,96747.0,0.051657]
[1732983276275,0.27908199,96748.0,96747.0,0.051657]
[1732983277786,0.28008199,96748.0,96747.0,0.051657]
[1732983279679,0.64088199,96748.0,96747.0,0.051657]
[1732983282282,0.51680199,96748.0,96747.0,0.051657]
[1732983282482,0.64088199,96748.0,96747.0,0.051657]
[1732983285887,0.05166,96742.0,96741.0,0.05166]
[1732983286087,0.17574,96742.0,96741.0,0.05166]
[1732983287286,0.17574,96742.0,96741.0,0.05366]
[1732983289783,0.53654,96742.0,96741.0,0.05366]
[1732983294884,0.69112266,96742.0,96741.0,0.002]
[1732983297591,0.70362473,96742.0,96741.0,0.002]
[1732983304094,0.81723063,96742.0,96741.0,0.002]